fUST/lending_fUST_20251203
["ID","MTS","AMOUNT","RATE_DAILY","PERIOD"]
[395562183,1764703841437,-500.0,0.00013698,2]
[395562186,1764703841446,-500.0,0.00013698,2]
[395562188,1764703841455,-500.0,0.00013698,2]
[395562189,1764703841465,-500.0,0.00013698,2]
[395562191,1764703841474,-606.35,0.00013698,2]
[395562193,1764703841483,-500.0,0.00013698,2]
[395562195,1764703841492,-883.7,0.00013698,2]
[395562197,1764703841501,-500.0,0.00013698,2]
[395562199,1764703841511,-500.0,0.00013698,2]
[395562201,1764703841519,-500.0,0.00013698,2]
[395562203,1764703841528,-500.0,0.00013698,2]
[395562205,1764703841538,-500.0,0.00013698,2]
[395562207,1764703841547,-507.89,0.00013698,2]
[395562209,1764703841556,-500.0,0.00013698,2]
[395562211,1764703841565,-1309.86,0.00013698,2]
[395562213,1764703841575,-500.0,0.00013698,2]
[395562215,1764703841585,-500.0,0.00013698,2]
[395562217,1764703841594,-500.0,0.00013698,2]
[395562219,1764703841603,-524.55,0.00013698,2]
[395562221,1764703841612,-1029.0,0.00013698,2]
[395562223,1764703841622,-500.0,0.00013698,2]
[395562225,1764703841631,-500.0,0.00013698,2]
[395562227,1764703841640,-500.0,0.00013698,2]
[395562229,1764703841649,-500.0,0.00013698,2]
[395562231,1764703841659,-500.0,0.00013698,2]
[395562233,1764703841668,-500.0,0.00013698,2]
[395562235,1764703841679,-532.68,0.00013698,2]
[395562237,1764703841688,-500.0,0.00013698,2]
[395562239,1764703841698,-500.0,0.00013698,2]
[395562241,1764703841707,-500.0,0.00013698,2]
[395562243,1764703841717,-500.0,0.00013698,2]
[395562245,1764703841726,-577.1,0.00013698,2]
[395562247,1764703841736,-579.46,0.00013698,2]
[395562249,1764703841745,-530.23,0.00013698,2]
[395562251,1764703841755,-502.28088367,0.00013698,2]
[395562253,1764703841765,-1238.69,0.00013698,2]
[395562255,1764703841774,-500.0,0.00013698,2]
[395562257,1764703841785,-793.67,0.00013698,2]
[395562259,1764703841794,-500.0,0.00013698,2]
[395562261,1764703841803,-526.53,0.00013698,2]
[395562263,1764703841812,-500.0,0.00013698,2]
[395562265,1764703841824,-922.1,0.00013698,2]
[395562267,1764703841834,-500.0,0.00013698,2]
[395562269,1764703841842,-500.0,0.00013698,2]
[395562271,1764703841852,-500.0,0.00013698,2]
[395562273,1764703841861,-500.0,0.00013698,2]
[395562275,1764703841873,-500.0,0.00013698,2]
[395562277,1764703841883,-558.85262989,0.00013698,2]
[395562279,1764703841893,-582.9,0.00013698,2]
[395562281,1764703841902,-1040.1,0.00013698,2]
[395562283,1764703841912,-500.0,0.00013698,2]
[395562285,1764703841922,-1000.0,0.00013698,2]
[395562287,1764703841932,-562.22141732,0.00013698,2]
[395562289,1764703841942,-500.0,0.00013698,2]
[395562291,1764703841952,-500.0,0.00013698,2]
[395562293,1764703841961,-500.0,0.00013698,2]
[395562295,1764703841970,-1160.16,0.00013698,2]
[395562297,1764703841979,-500.0,0.00013698,2]
[395562299,1764703841988,-500.0,0.00013698,2]
[395562301,1764703841998,-500.0,0.00013698,2]
[395562302,1764703842007,-500.0,0.00013698,2]
[395562304,1764703842016,-500.0,0.00013698,2]
[395562306,1764703842025,-500.0,0.00013698,2]
[395562308,1764703842034,-500.0,0.00013698,2]
[395562310,1764703842043,-500.0,0.00013698,2]
[395562312,1764703842052,-500.0,0.00013698,2]
[395562314,1764703842061,-511.22,0.00013698,2]
[395562316,1764703842070,-500.0,0.00013698,2]
[395562318,1764703842081,-520.05726179,0.00013698,2]
[395562320,1764703842090,-500.0,0.00013698,2]
[395562322,1764703842099,-500.0,0.00013698,2]
[395562324,1764703842108,-1055.78,0.00013698,2]
[395562326,1764703842118,-500.0,0.00013698,2]
[395562328,1764703842127,-500.0,0.00013698,2]
[395562330,1764703842136,-500.0,0.00013698,2]
[395562332,1764703842145,-500.0,0.00013698,2]
[395562334,1764703842155,-500.0,0.00013698,2]
[395562336,1764703842164,-500.0,0.00013698,2]
[395562338,1764703842173,-500.0,0.00013698,2]
[395562340,1764703842183,-500.0,0.00013698,2]
[395562342,1764703842192,-500.0,0.00013698,2]
[395562344,1764703842204,-500.0,0.00013698,2]
[395562346,1764703842214,-792.43,0.00013698,2]
[395562348,1764703842224,-957.25,0.00013698,2]
[395562350,1764703842234,-500.0,0.00013698,2]
[395562352,1764703842243,-500.0,0.00013698,2]
[395562354,1764703842255,-527.64,0.00013698,2]
[395562355,1764703842264,-500.0,0.00013698,2]
[395562357,1764703842274,-500.0,0.00013698,2]
[395562359,1764703842285,-500.0,0.00013698,2]
[395562361,1764703842294,-500.0,0.00013698,2]
[395562363,1764703842303,-500.0,0.00013698,2]
[395562365,1764703842313,-500.0,0.00013698,2]
[395562367,1764703842322,-500.0,0.00013698,2]
[395562369,1764703842332,-500.0,0.00013698,2]
[395562370,1764703842342,-500.0,0.00013698,2]
[395562372,1764703842352,-500.0,0.00013698,2]
[395562374,1764703842362,-512.18,0.00013698,2]
[395562376,1764703842372,-500.0,0.00013698,2]
[395562378,1764703842383,-500.0,0.00013698,2]
[395562380,1764703842392,-500.0,0.00013698,2]
[395562382,1764703842401,-500.0,0.00013698,2]
[395562384,1764703842411,-500.0,0.00013698,2]
[395562386,1764703842420,-706.62,0.00013698,2]
[395562388,1764703842429,-500.0,0.00013698,2]
[395562390,1764703842438,-930.66,0.00013698,2]
[395562392,1764703842448,-500.0,0.00013698,2]
[395562394,1764703842457,-500.0,0.00013698,2]
[395562396,1764703842466,-500.0,0.00013698,2]
[395562398,1764703842475,-1126.82,0.00013698,2]
[395562400,1764703842484,-864.0,0.00013698,2]
[395562402,1764703842493,-500.0,0.00013698,2]
[395562403,1764703842502,-929.14,0.00013698,2]
[395562405,1764703842512,-500.0,0.00013698,2]
[395562407,1764703842522,-779.55,0.00013698,2]
[395562409,1764703842531,-500.0,0.00013698,2]
[395562411,1764703842540,-500.0,0.00013698,2]
[395562413,1764703842550,-500.0,0.00013698,2]
[395562415,1764703842559,-500.0,0.00013698,2]
[395562417,1764703842569,-504.67775139,0.00013698,2]
[395562419,1764703842579,-500.0,0.00013698,2]
[395562421,1764703842588,-765.3,0.00013698,2]
[395562423,1764703842597,-500.0,0.00013698,2]
[395562425,1764703842606,-754.07,0.00013698,2]
[395562427,1764703842616,-500.0,0.00013698,2]
[395562429,1764703842625,-1033.0,0.00013698,2]
[395562431,1764703842634,-500.0,0.00013698,2]
[395562433,1764703842643,-500.0,0.00013698,2]
[395562436,1764703842652,-500.0,0.00013698,2]
[395562438,1764703842662,-500.0,0.00013698,2]
[395562440,1764703842671,-500.0,0.00013698,2]
[395562442,1764703842680,-500.0,0.00013698,2]
[395562444,1764703842689,-395.28144215,0.00013698,2]
[395562446,1764703842699,-500.0,0.00013698,2]
[395562448,1764703842708,-500.0,0.00013698,2]
[395562450,1764703842718,-500.0,0.00013698,2]
[395562451,1764703842727,-500.0,0.00013698,2]
[395562453,1764703842738,-500.0,0.00013698,2]
[395562455,1764703842748,-580.14,0.00013698,2]
[395562457,1764703842757,-500.0,0.00013698,2]
[395562459,1764703842767,-500.0,0.00013698,2]
[395562461,1764703842776,-500.0,0.00013698,2]
[395562463,1764703842786,-500.0,0.00013698,2]
[395562465,1764703842795,-500.0,0.00013698,2]
[395562467,1764703842805,-500.0,0.00013698,2]
[395562469,1764703842815,-1629.88,0.00013698,2]
[395562471,1764703842824,-500.0,0.00013698,2]
[395562473,1764703842833,-502.64888953,0.00013698,2]
[395562475,1764703842842,-1066.57,0.00013698,2]
[395562477,1764703842851,-500.0,0.00013698,2]
[395562479,1764703842860,-512.29,0.00013698,2]
[395562481,1764703842870,-231.42675824,0.00013698,2]
[395562482,1764703842884,-1339.06,0.00013698,2]
[395562484,1764703842893,-500.0,0.00013698,2]
[395562486,1764703842902,-500.0,0.00013698,2]
[395562488,1764703842911,-500.0,0.00013698,2]
[395562490,1764703842920,-500.0,0.00013698,2]
[395562492,1764703842929,-500.0,0.00013698,2]
[395562494,1764703842938,-500.0,0.00013698,2]
[395562496,1764703842947,-558.74212871,0.00013698,2]
[395562497,1764703842956,-500.0,0.00013698,2]
[395562499,1764703842966,-529.5,0.00013698,2]
[395562501,1764703842975,-500.0,0.00013698,2]
[395562503,1764703842984,-500.0,0.00013698,2]
[395562505,1764703842993,-546.47537521,0.00013698,2]
[395562507,1764703843002,-500.0,0.00013698,2]
[395562509,1764703843011,-962.08,0.00013698,2]
[395562511,1764703843020,-1561.46,0.00013698,2]
[395562513,1764703843030,-500.0,0.00013698,2]
[395562515,1764703843040,-500.0,0.00013698,2]
[395562517,1764703843050,-500.0,0.00013698,2]
[395562519,1764703843059,-500.0,0.00013698,2]
[395562521,1764703843068,-506.62,0.00013698,2]
[395562523,1764703843077,-500.0,0.00013698,2]
[395562525,1764703843087,-500.0,0.00013698,2]
[395562527,1764703843096,-500.0,0.00013698,2]
[395562529,1764703843106,-500.0,0.00013698,2]
[395562530,1764703843115,-573.16,0.00013698,2]
[395562532,1764703843124,-500.0,0.00013698,2]
[395562534,1764703843134,-500.0,0.00013698,2]
[395562536,1764703843143,-664.78,0.00013698,2]
[395562538,1764703843153,-500.0,0.00013698,2]
[395562540,1764703843162,-500.0,0.00013698,2]
[395562542,1764703843172,-500.0,0.00013698,2]
[395562544,1764703843182,-500.0,0.00013698,2]
[395562546,1764703843192,-500.0,0.00013698,2]
[395562548,1764703843204,-500.0,0.00013698,2]
[395562550,1764703843214,-500.0,0.00013698,2]
[395562552,1764703843224,-500.0,0.00013698,2]
[395562554,1764703843233,-500.0,0.00013698,2]
[395562556,1764703843243,-500.0,0.00013698,2]
[395562558,1764703843254,-500.0,0.00013698,2]
[395562560,1764703843264,-843.46,0.00013698,2]
[395562562,1764703843272,-500.0,0.00013698,2]
[395562564,1764703843284,-500.0,0.00013698,2]
[395562566,1764703843294,-500.0,0.00013698,2]
[395562568,1764703843303,-500.0,0.00013698,2]
[395562569,1764703843313,-500.0,0.00013698,2]
[395562571,1764703843323,-500.0,0.00013698,2]
[395562573,1764703843333,-500.0,0.00013698,2]
[395562575,1764703843342,-636.43091675,0.00013698,2]
[395562577,1764703843352,-500.0,0.00013698,2]
[395562579,1764703843361,-500.0,0.00013698,2]
[395562581,1764703843370,-500.0,0.00013698,2]
[395562583,1764703843380,-569.27,0.00013698,2]
[395562585,1764703843389,-500.0,0.00013698,2]
[395562587,1764703843399,-500.0,0.00013698,2]
[395562589,1764703843408,-694.63,0.00013698,2]
[395562590,1764703843418,-500.0,0.00013698,2]
[395562592,1764703843427,-500.0,0.00013698,2]
[395562594,1764703843436,-500.0,0.00013698,2]
[395562595,1764703843445,-500.0,0.00013698,2]
[395562596,1764703843455,-500.0,0.00013698,2]
[395562597,1764703843464,-500.0,0.00013698,2]
[395562598,1764703843473,-500.0,0.00013698,2]
[395562599,1764703843483,-500.0,0.00013698,2]
[395562600,1764703843492,-500.0,0.00013698,2]
[395562601,1764703843502,-500.0,0.00013698,2]
[395562602,1764703843511,-500.0,0.00013698,2]
[395562603,1764703843520,-672.93,0.00013698,2]
[395562604,1764703843530,-505.07,0.00013698,2]
[395562605,1764703843539,-1322.39,0.00013698,2]
[395562606,1764703843548,-500.0,0.00013698,2]
[395562607,1764703843558,-500.0,0.00013698,2]
[395562608,1764703843567,-500.0,0.00013698,2]
[395562609,1764703843576,-516.27,0.00013698,2]
[395562610,1764703843585,-500.0,0.00013698,2]
[395562611,1764703843594,-500.0,0.00013698,2]
[395562612,1764703843604,-733.09,0.00013698,2]
[395562613,1764703843613,-500.0,0.00013698,2]
[395562614,1764703843624,-500.0,0.00013698,2]
[395562615,1764703843635,-500.0,0.00013698,2]
[395562616,1764703843645,-500.0,0.00013698,2]
[395562617,1764703843655,-500.0,0.00013698,2]
[395562618,1764703843666,-500.0,0.00013698,2]
[395562619,1764703843676,-304.43049247,0.00013698,2]
[395562620,1764703843686,-528.19241436,0.00013698,2]
[395562621,1764703843695,-500.0,0.00013698,2]
[395562622,1764703843705,-500.0,0.00013698,2]
[395562623,1764703843715,-500.0,0.00013698,2]
[395562624,1764703843724,-734.67,0.00013698,2]
[395562625,1764703843734,-500.0,0.00013698,2]
[395562626,1764703843744,-500.0,0.00013698,2]
[395562627,1764703843753,-511.1337399,0.00013698,2]
[395562628,1764703843763,-724.94,0.00013698,2]
[395562629,1764703843772,-500.0,0.00013698,2]
[395562630,1764703843784,-1107.83,0.00013698,2]
[395562631,1764703843793,-500.0,0.00013698,2]
[395562632,1764703843802,-604.11,0.00013698,2]
[395562633,1764703843811,-500.0,0.00013698,2]
[395562634,1764703843820,-500.0,0.00013698,2]
[395562635,1764703843829,-500.0,0.00013698,2]
[395562636,1764703843838,-500.0,0.00013698,2]
[395562637,1764703843847,-500.0,0.00013698,2]
[395562639,1764703843856,-500.0,0.00013698,2]
[395562640,1764703843864,-1281.96,0.00013698,2]
[395562642,1764703843874,-500.0,0.00013698,2]
[395562644,1764703843884,-500.0,0.00013698,2]
[395562646,1764703843893,-500.0,0.00013698,2]
[395562648,1764703843902,-596.62,0.00013698,2]
[395562650,1764703843911,-500.0,0.00013698,2]
[395562652,1764703843920,-500.0,0.00013698,2]
[395562654,1764703843929,-500.0,0.00013698,2]
[395562656,1764703843939,-743.66,0.00013698,2]
[395562658,1764703843948,-500.0,0.00013698,2]
[395562660,1764703843958,-500.0,0.00013698,2]
[395562662,1764703843967,-500.0,0.00013698,2]
[395562664,1764703843976,-500.0,0.00013698,2]
[395562666,1764703843985,-1562.57,0.00013698,2]
[395562668,1764703843995,-500.0,0.00013698,2]
[395562670,1764703844004,-1156.35,0.00013698,2]
[395562672,1764703844014,-500.0,0.00013698,2]
[395562674,1764703844024,-733.45,0.00013698,2]
[395562676,1764703844034,-294.88780935,0.00013698,2]
[395562678,1764703844043,-500.0,0.00013698,2]
[395562680,1764703844053,-500.0,0.00013698,2]
[395562682,1764703844062,-500.0,0.00013698,2]
[395562684,1764703844071,-826.78,0.00013698,2]
[395562686,1764703844081,-500.0,0.00013698,2]
[395562687,1764703844089,-500.0,0.00013698,2]
[395562689,1764703844099,-500.0,0.00013698,2]
[395562691,1764703844108,-600.98,0.00013698,2]
[395562693,1764703844118,-500.0,0.00013698,2]
[395562695,1764703844129,-554.57786991,0.00013698,2]
[395562697,1764703844138,-500.0,0.00013698,2]
[395562699,1764703844148,-500.0,0.00013698,2]
[395562701,1764703844158,-756.0,0.00013698,2]
[395562703,1764703844167,-1479.46,0.00013698,2]
[395562705,1764703844176,-990.73,0.00013698,2]
[395562707,1764703844185,-500.0,0.00013698,2]
[395562709,1764703844195,-500.0,0.00013698,2]
[395562711,1764703844209,-500.0,0.00013698,2]
[395562713,1764703844219,-531.57,0.00013698,2]
[395562715,1764703844229,-500.0,0.00013698,2]
[395562716,1764703844238,-508.9357121,0.00013698,2]
[395562718,1764703844249,-459.21434034,0.00013698,2]
[395562720,1764703844258,-500.0,0.00013698,2]
[395562722,1764703844267,-251.04615587,0.00013698,2]
[395562724,1764703844276,-500.0,0.00013698,2]
[395562726,1764703844289,-500.0,0.00013698,2]
[395562728,1764703844299,-500.0,0.00013698,2]
[395562730,1764703844309,-689.39,0.00013698,2]
[395562732,1764703844319,-500.0,0.00013698,2]
[395562734,1764703844330,-500.0,0.00013698,2]
[395562736,1764703844339,-338.47881162,0.00013698,2]
[395562738,1764703844348,-500.0,0.00013698,2]
[395562740,1764703844358,-500.0,0.00013698,2]
[395562742,1764703844367,-256.59934587,0.00013698,2]
[395562746,1764703844400,-87.55793093,0.00013698,2]
[395562748,1764703844409,-500.0,0.00013698,2]
[395562750,1764703844419,-500.0,0.00013698,2]
[395562752,1764703844429,-670.06788752,0.00013698,2]
[395562754,1764703844440,-230.01211248,0.00013698,2]
[395562756,1764703844450,-500.0,0.00013698,2]
[395562758,1764703844459,-134.59575013,0.00013698,2]
[395562761,1764703844484,-365.40424987,0.00013698,2]
[395562763,1764703844493,-500.0,0.00013698,2]
[395562765,1764703844502,-500.0,0.00013698,2]
[395562766,1764703844512,-840.22,0.00013698,2]
[395562768,1764703844521,-663.58,0.00013698,2]
[395562770,1764703844532,-500.0,0.00013698,2]
[395562772,1764703844541,-773.68,0.00013698,2]
[395562774,1764703844551,-500.0,0.00013698,2]
[395562776,1764703844560,-151.0,0.00013698,2]
[395562778,1764703844569,-500.0,0.00013698,2]
[395562780,1764703844578,-500.0,0.00013698,2]
[395562782,1764703844587,-611.83,0.00013698,2]
[395562784,1764703844600,-500.0,0.00013698,2]
[395562786,1764703844609,-500.0,0.00013698,2]
[395562788,1764703844620,-500.0,0.00013698,2]
[395562790,1764703844630,-500.0,0.00013698,2]
[395562792,1764703844639,-842.9,0.00013698,2]
[395562794,1764703844650,-500.0,0.00013698,2]
[395562796,1764703844659,-500.0,0.00013698,2]
[395562798,1764703844668,-550.65868542,0.00013698,2]
[395562799,1764703844678,-500.0,0.00013698,2]
[395562801,1764703844687,-500.0,0.00013698,2]
[395562803,1764703844696,-500.0,0.00013698,2]
[395562805,1764703844705,-500.0,0.00013698,2]
[395562807,1764703844715,-500.0,0.00013698,2]
[395562809,1764703844724,-500.0,0.00013698,2]
[395562811,1764703844734,-500.0,0.00013698,2]
[395562813,1764703844743,-500.0,0.00013698,2]
[395562815,1764703844752,-151.0,0.00013698,2]
[395562816,1764703844761,-922.66,0.00013698,2]
[395562818,1764703844770,-500.54083625,0.00013698,2]
[395562820,1764703844780,-1721.25,0.00013698,2]
[395562822,1764703844789,-1436.38,0.00013698,2]
[395562824,1764703844798,-604.19,0.00013698,2]
[395562826,1764703844807,-520.48,0.00013698,2]
[395562828,1764703844817,-517.92848488,0.00013698,2]
[395562830,1764703844827,-500.0,0.00013698,2]
[395562832,1764703844836,-500.0,0.00013698,2]
[395562834,1764703844845,-500.0,0.00013698,2]
[395562836,1764703844855,-500.0,0.00013698,2]
[395562837,1764703844865,-500.0,0.00013698,2]
[395562839,1764703844875,-500.0,0.00013698,2]
[395562841,1764703844885,-500.0,0.00013698,2]
[395562843,1764703844896,-500.0,0.00013698,2]
[395562845,1764703844906,-509.601831,0.00013698,2]
[395562847,1764703844917,-500.0,0.00013698,2]
[395562849,1764703844927,-500.0,0.00013698,2]
[395562851,1764703844938,-1137.57,0.00013698,2]
[395562853,1764703844947,-500.0,0.00013698,2]
[395562855,1764703844957,-547.59,0.00013698,2]
[395562857,1764703844967,-500.0,0.00013698,2]
[395562859,1764703844977,-500.0,0.00013698,2]
[395562861,1764703844987,-915.89656266,0.00013698,2]
[395562863,1764703844999,-110.30343734,0.00013698,2]
[395562865,1764703845009,-1190.89,0.00013698,2]
[395562867,1764703845018,-763.15,0.00013698,2]
[395562869,1764703845027,-24.7264138,0.00013698,2]
[395562871,1764703845039,-475.2735862,0.00013698,2]
[395562873,1764703845049,-500.0,0.00013698,2]
[395562875,1764703845058,-500.0,0.00013698,2]
[395562877,1764703845067,-603.62242483,0.00013698,2]
[395562879,1764703845076,-1012.98,0.00013698,2]
[395562881,1764703845086,-40.02254119,0.00013698,2]
[395562883,1764703845097,-459.97745881,0.00013698,2]
[395562885,1764703845107,-500.0,0.00013698,2]
[395562887,1764703845116,-574.42,0.00013698,2]
[395562889,1764703845126,-500.0,0.00013698,2]
[395562891,1764703845135,-500.0,0.00013698,2]
[395562893,1764703845144,-501.4277964,0.00013698,2]
[395562894,1764703845153,-500.0,0.00013698,2]
[395562896,1764703845162,-177.46670746,0.00013698,2]
[395562898,1764703845171,-983.42,0.00013698,2]
[395562900,1764703845180,-500.0,0.00013698,2]
[395562902,1764703845189,-500.0,0.00013698,2]
[395562922,1764703845380,-500.0,0.00013698,2]
[395562924,1764703845390,-177.09632423,0.00013698,2]
[395562926,1764703845401,-871.96,0.00013698,2]
[395562928,1764703845411,-500.0,0.00013698,2]
[395562930,1764703845421,-3545.6717131,0.00013698,2]
[395562998,1764703846027,-631.8891262,0.00013698,2]
[395563011,1764703846146,-253.7391607,0.00013698,2]
[395563013,1764703846158,-500.0,0.00013698,2]
[395563015,1764703846168,-393.7608393,0.00013698,2]
[395563018,1764703846180,-269.7791607,0.00013698,2]
[395563020,1764703846190,-500.0,0.00013698,2]
[395563022,1764703846200,-927.89,0.00013698,2]
[395563023,1764703846213,-500.0,0.00013698,2]
[395563026,1764703846223,-489.90053903,0.00013698,2]
[395563042,1764703846511,-403.72996231,0.00013561,2]
[395563044,1764703846524,-1737.07354628,0.00013561,2]
[395563046,1764703846535,-192.68946097,0.00013698,2]
[395563048,1764703846545,-515.36899788,0.00013698,2]
[395563050,1764703846556,-1632.89003421,0.00013698,2]
[395563053,1764703846569,-1824.07996579,0.00013698,2]
[395563055,1764703846580,-500.0,0.00013698,2]
[395563057,1764703846591,-2093.63,0.00013698,2]
[395563059,1764703846601,-1071.56,0.00013698,2]
[395563061,1764703846611,-500.0,0.00013698,2]
[395563063,1764703846622,-1523.47,0.00013698,2]
[395563065,1764703846631,-176.11358816,0.00013698,2]
[395563067,1764703846642,-500.0,0.00013698,2]
[395563069,1764703846652,-729.29,0.00013698,2]
[395563071,1764703846661,-549.46687192,0.00013698,2]
[395563073,1764703846671,-151.0,0.00013698,2]
[395563075,1764703846681,-839.71,0.00013698,2]
[395563077,1764703846691,-562.75,0.00013698,2]
[395563079,1764703846707,-500.0,0.00013698,2]
[395563082,1764703846724,-1071.64,0.00013698,2]
[395563083,1764703846738,-1318.07,0.00013698,2]
[395563085,1764703846755,-1228.52,0.00013698,2]
[395563087,1764703846765,-10152.55,0.00013698,2]
[395563089,1764703846776,-281.63768146,0.00013698,2]
[395563093,1764703846796,-218.36231854,0.00013698,2]
[395563095,1764703846806,-500.0,0.00013698,2]
[395563097,1764703846817,-151.0,0.00013698,2]
[395563099,1764703846827,-162.290416,0.00013698,2]
[395563101,1764703846837,-500.0,0.00013698,2]
[395563103,1764703846846,-63.50072552,0.00013698,2]
[395564059,1764703856976,292.93542338,9.481e-05,2]
[395566989,1764704100365,803.23127795,9.481e-05,2]
[395567262,1764704463100,250.0,0.0002,30]
[395567626,1764705032063,-402.97,0.00010241,2]
[395567627,1764705032072,-402.97,0.00010344,2]
[395567628,1764705032081,-228.88254055,0.00010448,2]
[395567629,1764705032093,-7.11745945,0.00010448,2]
[395567630,1764705032103,-347.21195685,0.00010501,2]
[395567631,1764705032112,-166.97,0.00011099,2]
[395567632,1764705032121,-184.14975493,0.00011659,2]
[395567635,1764705032132,-331.46955888,0.00011659,2]
[395567636,1764705032142,-588.68993657,0.00011659,2]
[395567637,1764705032152,-365.44107991,0.00011659,2]
[395567639,1764705032162,-417.22930152,0.00011659,2]
[395567640,1764705032171,-880.6895328,0.00011868,2]
[395567641,1764705032180,-192.73239963,0.00012272,2]
[395567642,1764705032189,-300.0,0.00012272,2]
[395567644,1764705032199,-33807.37027652,0.00012273,2]
[395567649,1764705032227,-16044.58006565,0.00012273,2]
[395567650,1764705032236,-101.41478326,0.00012401,2]
[395567651,1764705032247,-84.5619611,0.00012401,2]
[395567652,1764705032256,-206.0089164,0.00012501,2]
[395567844,1764705040160,-1371.360318,0.00011543,2]
[395567846,1764705040170,-203.70119268,0.00012501,2]
[395567848,1764705040180,-159.07301191,0.00012559,2]
[395567850,1764705040190,-684.7229129,0.00012589,2]
[395567852,1764705040200,-590.7960981,0.00012834,7]
[395567854,1764705040210,-257.664,0.00012918,2]
[395567856,1764705040220,-3500.0,0.00013,2]
[395567858,1764705040230,-346.93136212,0.00013216,2]
[395567860,1764705040239,-500.0,0.00013273,2]
[395567862,1764705040248,-500.0,0.00013273,2]
[395567865,1764705040258,-285.75110429,0.00013273,2]
[395567995,1764705041499,292.96028376,9.481e-05,2]
[395568444,1764705046378,-600.0,0.00011428,2]
[395568451,1764705046431,-771.360318,0.00011428,2]
[395568453,1764705046441,-112.8915047,0.00013273,2]
[395568455,1764705046451,-452.92791389,0.00013273,2]
[395568457,1764705046460,-500.0,0.00013273,2]
[395568458,1764705046469,-500.0,0.00013273,2]
[395568461,1764705046479,-420.0,0.00013468,2]
[395568463,1764705046489,-201.93286099,0.00013488,2]
[395568465,1764705046498,-1499.27857432,0.00013499,2]
[395568467,1764705046508,-1499.27857431,0.00013524,2]
[395568469,1764705046518,-1499.27857431,0.00013549,2]
[395568471,1764705046527,-1499.27857431,0.00013573,2]
[395568473,1764705046536,-1499.27857431,0.00013598,2]
[395568475,1764705046544,-389.61,0.00013599,2]
[395568477,1764705046553,-300.0,0.00013673,2]
[395568479,1764705046563,-500.0,0.00013697,2]
[395568481,1764705046573,-500.0,0.00013698,2]
[395568482,1764705046582,-500.0,0.00013698,2]
[395568484,1764705046593,-458.4700261,0.00013698,2]
[395568487,1764705046606,-41.5299739,0.00013698,2]
[395568489,1764705046616,-500.0,0.00013698,2]
[395568491,1764705046626,-500.0,0.00013698,2]
[395568493,1764705046638,-500.0,0.00013698,2]
[395568495,1764705046647,-381.3700263,0.00013698,2]
[395578014,1764705423300,250.0,0.0002,30]
[395578139,1764705600384,759.25237009,9.481e-05,2]
[395579005,1764706148002,1073.12800173,0.000205,29]
[395579123,1764706232203,-1006.93070528,0.00010549,2]
[395579124,1764706232213,-266.72107576,0.00010656,2]
[395579125,1764706232224,-740.20962952,0.00010656,2]
[395579126,1764706232234,-1006.93070528,0.00010764,2]
[395579127,1764706232254,-238.0,0.00010764,2]
[395579129,1764706232264,-360.3678168,0.00011263,2]